Workbook

Sheet 6.3
A1: 收料登记表填报 日期 ：2019 年 6 月 3 日 填表人 ：李凤
B2: 单位：江苏大力神管桩有限公司
A3: 序号 | B3: 到厂时间 | C3: 送料人相关信息 | I3: 物品相关信息（参数指标等） | U3: 结算信息 | X3: 检验员 | Y3: 过磅员 | Z3: 备注
B4: 时 分 | C4: 车号 | D4: 车主姓名 （客户） | E4: 司机姓名 | F4: 司机手机号 | G4: 所属车队 | H4: 磅单单号 | I4: 入库单号 | J4: 品名 | K4: 规格 | L4: 毛重t | M4: 皮重t | N4: 净重t | O4: 含水率% | P4: 含泥量% | Q4: 细度模数 | R4: 级配区/颗粒级配 | S4: 压碎值% | T4: 扣杂质t | U4: 结算重量 | V4: 单价/元 | W4: 金额/元
A5: 1 | B5: 12:42:00 | C5: 苏CBA768 | D5: 余宝军 | E5: 杨国强 | F5: 15252221345 | G5: 丁庆余 | H5: 13961 | I5: WIN0050723 | J5: 石子 | K5: 1-2# | L5: 100.1 | M5: 22.08 | N5: 78.02 | R5: 良好 | S5: 7 | T5: 0.52 | U5: 77.5 | V5: 103 | W5: =V5*U5 -> 7982.5 | X5: 刘会良 | Y5: 杜娥
A6: 2 | B6: 12:59:00 | C6: 苏C1T817 | D6: 陈建 | E6: 刘明亮 | F6: 18151890009 | G6: 丁庆余 | H6: 13962 | I6: WIN0050723 | J6: 石子 | K6: 1-2# | L6: 93.08 | M6: 22.84 | N6: 70.24 | R6: 良好 | S6: 7 | T6: 0.54 | U6: 69.7 | V6: 103 | W6: 7179.1 | X6: 刘会良 | Y6: 杜娥
A7: 3 | B7: 13:15:00 | C7: 苏CJW885 | D7: 陈建 | E7: 袁维 | F7: 18018460313 | G7: 丁庆余 | H7: 13964 | I7: WIN0050723 | J7: 石子 | K7: 1-2# | L7: 103.04 | M7: 22.66 | N7: 80.38 | R7: 良好 | S7: 7 | T7: 0.58 | U7: 79.8 | V7: 103 | W7: 8219.4 | X7: 刘会良 | Y7: 杜娥
A8: 4 | B8: 19:00:00 | C8: 鲁QV8855 | D8: 韩榆 | E8: 韩榆 | F8: 15162001555 | G8: 李海洋 | H8: 13965 | I8: WIN0050722 | J8: 石子 | K8: 1-2# | L8: 102.5 | M8: 23.44 | N8: 79.06 | R8: 良好 | S8: 7 | T8: 0.56 | U8: 78.5 | V8: 103 | W8: 8085.5 | X8: 杨家辉 | Y8: 马娜
A9: 5 | B9: 22:00:00 | C9: 苏CGV338 | D9: 汤可奇 | E9: 宫东明 | F9: 15563375779 | G9: 李海洋 | H9: 13969 | I9: WIN0050721 | J9: 机制砂 | K9: 中粗砂 | L9: 95.92 | M9: 21.62 | N9: 74.3 | O9: 7 | P9: 1.5 | Q9: 3.3 | R9: Ⅱ区 | T9: 2.3 | U9: 72 | V9: 122 | W9: 8784 | X9: 杨家辉 | Y9: 马娜 | Z9: 三车间
A10: 6 | B10: 22:02:00 | C10: 鲁Q627AP | D10: 宫爱军 | E10: 宫爱军 | F10: 15253915869 | G10: 李海洋 | H10: 13970 | I10: WIN0050721 | J10: 机制砂 | K10: 中粗砂 | L10: 96.22 | M10: 22.68 | N10: 73.54 | O10: 7 | P10: 1.5 | Q10: 3.3 | R10: Ⅱ区 | T10: 2.24 | U10: 71.3 | V10: 122 | W10: 8698.6 | X10: 杨家辉 | Y10: 马娜 | Z10: 三车间
A11: 7 | B11: 22:05:00 | C11: 苏CGS000 | D11: 周桂霖 | E11: 黄亿武 | F11: 15062093139 | G11: 庄团结 | H11: 13971 | I11: WIN0050720 | J11: 机制砂 | K11: 中粗砂 | L11: 93.4 | M11: 21.84 | N11: 71.56 | O11: 7 | P11: 1.5 | Q11: 3.3 | R11: Ⅱ区 | T11: 2.16 | U11: 69.4 | V11: 122 | W11: 8466.8 | X11: 杨家辉 | Y11: 马娜 | Z11: 三车间
A12: 8 | B12: 22:15:00 | C12: 苏C2A698 | D12: 高雷 | E12: 高雷 | F12: 13913462579 | G12: 李海洋 | H12: 13973 | I12: WIN0050721 | J12: 机制砂 | K12: 中粗砂 | L12: 112 | M12: 30.06 | N12: 81.94 | O12: 7 | P12: 1.5 | Q12: 3.3 | R12: Ⅱ区 | T12: 2.54 | U12: 79.4 | V12: 122 | W12: 9686.8 | X12: 杨家辉 | Y12: 马娜 | Z12: 三车间
A13: 9 | B13: 22:49:00 | C13: 鲁Q636CQ | D13: 韩磊 | E13: 柳西亮 | F13: 18168677039 | G13: 李海洋 | H13: 13974 | I13: WIN0050722 | J13: 石子 | K13: 1-2# | L13: 68.34 | M13: 18.14 | N13: 50.2 | R13: 良好 | S13: 7 | T13: 0.5 | U13: 48.7 | V13: 103 | W13: 5016.1 | X13: 杨家辉 | Y13: 马娜
A14: 10 | B14: 03:02:00 | C14: 苏CGP356 | D14: 张赛赛 | E14: 张飞 | F14: 18251742399 | G14: 李海洋 | H14: 13978 | I14: WIN0050721 | J14: 机制砂 | K14: 中粗砂 | L14: 87.82 | M14: 21.6 | N14: 66.22 | O14: 6 | P14: 2 | Q14: 2.9 | R14: Ⅱ区 | T14: 1.42 | U14: 64.8 | V14: 122 | W14: 7905.6 | X14: 杨家辉 | Y14: 马娜
A15: 11 | B15: 03:04:00 | C15: 苏CGF365 | D15: 冯永青 | E15: 崔学良 | F15: 13775854328 | G15: 李海洋 | H15: 13977 | I15: WIN0050721 | J15: 机制砂 | K15: 中粗砂 | L15: 87.94 | M15: 21.54 | N15: 66.4 | O15: 6 | P15: 2 | Q15: 2.9 | R15: Ⅱ区 | T15: 1.4 | U15: 65 | V15: 122 | W15: 7930 | X15: 杨家辉 | Y15: 马娜
A16: 12 | B16: 03:14:00 | C16: 鲁Q627AP | D16: 宫爱军 | E16: 宫爱军 | F16: 15253915869 | G16: 李海洋 | H16: 13981 | I16: WIN0050721 | J16: 机制砂 | K16: 中粗砂 | L16: 99.2 | M16: 22.88 | N16: 76.32 | O16: 8 | P16: 2 | Q16: 2.9 | R16: Ⅱ区 | T16: 3.12 | U16: 73.2 | V16: 122 | W16: 8930.4 | X16: 杨家辉 | Y16: 马娜
A20: 合计 | N20: =SUM(N5:N19) -> 868.18 | U20: =SUM(U5:U19) -> 849.3 | W20: =SUM(W5:W19) -> 96884.8

Sheet 6.4
A1: 收料登记表填报 日期 ：2019 年 6 月 4 日 填表人 ：李凤
B2: 单位：江苏大力神管桩有限公司
A3: 序号 | B3: 到厂时间 | C3: 送料人相关信息 | I3: 物品相关信息（参数指标等） | U3: 结算信息 | X3: 检验员 | Y3: 过磅员 | Z3: 备注
B4: 时 分 | C4: 车号 | D4: 车主姓名 （客户） | E4: 司机姓名 | F4: 司机手机号 | G4: 所属车队 | H4: 磅单单号 | I4: 入库单号 | J4: 品名 | K4: 规格 | L4: 毛重t | M4: 皮重t | N4: 净重t | O4: 含水率% | P4: 含泥量% | Q4: 细度模数 | R4: 级配区/颗粒级配 | S4: 压碎值% | T4: 扣杂质t | U4: 结算重量 | V4: 单价/元 | W4: 金额/元
A5: 1 | B5: 11:21:00 | C5: 鲁Q627AP | D5: 宫爱军 | E5: 宫爱军 | F5: 15253915869 | G5: 庄团结 | H5: 13987 | I5: WIN0050732 | J5: 机制砂 | K5: 中粗砂 | L5: 92.44 | M5: 22.56 | N5: 69.88 | O5: 8 | P5: 2.1 | Q5: 2.9 | R5: Ⅱ区 | T5: 2.88 | U5: 67 | V5: 122 | W5: =U5*V5 -> 8174 | X5: 陈金芳 | Y5: 杜娥
A6: 2 | B6: 11:25:00 | C6: 苏CGV338 | D6: 汤可奇 | E6: 宫东明 | F6: 15563375779 | G6: 庄团结 | H6: 13988 | I6: WIN0050732 | J6: 机制砂 | K6: 中粗砂 | L6: 92.28 | M6: 21.5 | N6: 70.78 | O6: 8 | P6: 2.1 | Q6: 2.9 | R6: Ⅱ区 | T6: 2.88 | U6: 67.9 | V6: 122 | W6: 8283.8 | X6: 陈金芳 | Y6: 马娜
A7: 3 | B7: 19:38:00 | C7: 苏CGV338 | D7: 汤可奇 | E7: 宫东明 | F7: 15563375779 | G7: 庄团结 | H7: 13989 | I7: WIN0050732 | J7: 机制砂 | K7: 中粗砂 | L7: 21.58 | M7: 21.58 | N7: 71.28 | O7: 7 | P7: 1.6 | Q7: 2.9 | R7: Ⅱ区 | T7: 2.18 | U7: 69.1 | V7: 122 | W7: 8430.2 | X7: 冯忠华 | Y7: 马娜
A8: 4 | B8: 19:41:00 | C8: 鲁Q627AP | D8: 宫爱军 | E8: 宫爱军 | F8: 15253915869 | G8: 庄团结 | H8: 13990 | I8: WIN0050732 | J8: 机制砂 | K8: 中粗砂 | L8: 91.12 | M8: 22.7 | N8: 68.42 | O8: 7 | P8: 1.6 | Q8: 2.9 | R8: Ⅱ区 | T8: 2.12 | U8: 66.3 | V8: 122 | W8: 8088.6 | X8: 冯忠华 | Y8: 马娜
A9: 5 | B9: 20:25:00 | C9: 苏CGS000 | D9: 周桂霖 | E9: 黄亿武 | F9: 15062093139 | G9: 庄团结 | H9: 13991 | I9: WIN0050732 | J9: 机制砂 | K9: 中粗砂 | L9: 92.28 | M9: 21.68 | N9: 70.6 | O9: 7 | P9: 1.6 | Q9: 2.9 | R9: Ⅱ区 | T9: 2.2 | U9: 68.4 | V9: 122 | W9: 8344.8 | X9: 冯忠华 | Y9: 马娜
A10: 6 | B10: 20:27:00 | C10: 苏C2A698 | D10: 高雷 | E10: 高雷 | F10: 13913462579 | G10: 庄团结 | H10: 13992 | I10: WIN0050732 | J10: 机制砂 | K10: 中粗砂 | L10: 107.36 | M10: 29.42 | N10: 77.94 | O10: 7 | P10: 1.6 | Q10: 2.9 | R10: Ⅱ区 | T10: 2.34 | U10: 75.6 | V10: 122 | W10: 9223.2 | X10: 冯忠华 | Y10: 马娜
A11: 7 | B11: 21:18:00 | C11: 苏CGA040 | D11: 冯永盛 | E11: 李城市 | F11: 13913462579 | G11: 李海洋 | H11: 13994 | I11: WIN0050733 | J11: 机制砂 | K11: 中粗砂 | L11: 93.46 | M11: 21.58 | N11: 71.88 | O11: 8 | P11: 1.6 | Q11: 2.9 | R11: Ⅱ区 | T11: 2.88 | U11: 69 | V11: 122 | W11: 8418 | X11: 冯忠华 | Y11: 马娜
A12: 8 | B12: 21:20:00 | C12: 苏CGF365 | D12: 冯永青 | E12: 崔学良 | F12: 13775854328 | G12: 李海洋 | H12: 13995 | I12: WIN0050733 | J12: 机制砂 | K12: 中粗砂 | L12: 92.48 | M12: 21.42 | N12: 71.06 | O12: 8 | P12: 1.6 | Q12: 2.9 | R12: Ⅱ区 | T12: 2.86 | U12: 68.2 | V12: 122 | W12: 8320.4 | X12: 冯忠华 | Y12: 马娜
A13: 9 | B13: 21:21:00 | C13: 苏CGP356 | D13: 张赛赛 | E13: 张飞 | F13: 18251742399 | G13: 李海洋 | H13: 13996 | I13: WIN0050733 | J13: 机制砂 | K13: 中粗砂 | L13: 94.26 | M13: 21.72 | N13: 72.54 | O13: 8 | P13: 1.6 | Q13: 2.9 | R13: Ⅱ区 | T13: 2.94 | U13: 69.6 | V13: 122 | W13: 8491.2 | X13: 冯忠华 | Y13: 马娜
A14: 10 | B14: 04:02:00 | C14: 苏CGP356 | D14: 张赛赛 | E14: 张飞 | F14: 18251742399 | G14: 李海洋 | H14: 14008 | I14: WIN0050733 | J14: 机制砂 | K14: 中粗砂 | L14: 99.98 | M14: 21.58 | N14: 78.4 | O14: 9 | P14: 2 | Q14: 2.9 | R14: Ⅱ区 | T14: 4 | U14: 74.4 | V14: 122 | W14: 9076.8 | X14: 冯忠华 | Y14: 马娜
A15: 11 | B15: 04:04:00 | C15: 苏CGF365 | D15: 冯永青 | E15: 崔学良 | F15: 13775854328 | G15: 李海洋 | H15: 14006 | I15: WIN0050733 | J15: 机制砂 | K15: 中粗砂 | L15: 99 | M15: 21.64 | N15: 77.36 | O15: 9 | P15: 2 | Q15: 2.9 | R15: Ⅱ区 | T15: 3.96 | U15: 73.4 | V15: 122 | W15: 8954.8 | X15: 冯忠华 | Y15: 马娜
A16: 12 | B16: 04:06:00 | C16: 苏CGA040 | D16: 冯永盛 | E16: 李城市 | F16: 13913462579 | G16: 李海洋 | H16: 14007 | I16: WIN0050733 | J16: 机制砂 | K16: 中粗砂 | L16: 93.16 | M16: 21.14 | N16: 72.02 | O16: 9 | P16: 2 | Q16: 2.9 | R16: Ⅱ区 | T16: 3.62 | U16: 68.4 | V16: 122 | W16: 8344.8 | X16: 冯忠华 | Y16: 马娜
A27: 合计 | N27: =SUM(N5:N26) -> 872.16 | U27: =SUM(U5:U26) -> 837.3 | W27: =SUM(W5:W26) -> 102150.6

Sheet 巨野分公司
A1: 收料登记表填报 日期 2019年 6 月 4 日 填表人 ：杨振华
B2: 单位：江苏大力神管桩有限公司巨野分公司
A3: 序号 | B3: 到厂时间 | C3: 送料人相关信息 | H3: 物品相关信息（参数指标等） | T3: 结算信息 | W3: 检验员 | X3: 过磅员 | Y3: 备注
B4: 时 分 | C4: 车号 | D4: 车主姓名 | E4: 司机姓名 | F4: 司机手机号 | G4: 所属车队 | H4: 入库单号 | I4: 品名 | J4: 规格 | K4: 毛重 | L4: 皮重 | M4: 净重 | N4: 含水率% | O4: 含泥量% | P4: 细度模数 | Q4: 级配区 | R4: 压碎值 | S4: 扣杂质t | T4: 结算重量 | U4: 单价 | V4: 金额
A5: 1 | B5: 05:45:00 | C5: 鲁RJ1282 | D5: 王彦钦 | E5: 徐龙福 | F5: 17753053016 | G5: 巨野中联 | H5: 014145 | I5: 水泥 | J5: PO42.5 | K5: 98.83 | L5: 26.06 | M5: =K5-L5 -> 72.77 | S5: 0.30% | T5: 72.55 | U5: 525 | V5: =T5*U5 -> 38088.75 | W5: 冯海英 | X5: 聂恒光
A6: 2 | B6: 05:51:00 | C6: 鲁RK1976 | D6: 王彦钦 | E6: 宋彦兵 | F6: 15966330156 | G6: 巨野中联 | H6: 014146 | I6: 水泥 | J6: PO42.5 | K6: 99.18 | L6: 25.95 | M6: 73.23 | S6: 0.33% | T6: 73.01 | U6: 525 | V6: 38330.25 | W6: 冯海英 | X6: 聂恒光
A7: 3 | B7: 06:22:00 | C7: 鲁RM2498 | D7: 魏庆如 | E7: 崔保东 | F7: 18953075722 | G7: 英良运输 | H7: 014147 | I7: 机制沙 | J7: 中粗 | K7: 49.35 | L7: 16.23 | M7: 33.12 | S7: 0.1T | T7: 33.2 | U7: 139 | V7: 4614.8 | W7: 冯海英 | X7: 聂恒光
A8: 4 | B8: 06:25:00 | C8: 鲁RN9829 | D8: 魏翔远 | E8: 魏翔远 | F8: 15854038599 | G8: 英良运输 | H8: 014148 | I8: 机制沙 | J8: 中粗 | K8: 50.33 | L8: 16.36 | M8: 33.97 | S8: 0.17T | T8: 33.8 | U8: 139 | V8: 4698.2 | W8: 冯海英 | X8: 聂恒光
A9: 5 | B9: 06:28:00 | C9: 鲁RJ5036 | D9: 李翔 | E9: 郭胜全 | F9: 13395406029 | G9: 李翔 | H9: 014149 | I9: 钢棒 | J9: &10.7 | K9: 48.09 | L9: 31.78 | M9: 16.31 | T9: 16.31 | U9: 4850 | V9: 79103.5 | W9: 冯海英 | X9: 聂恒光
A10: 6 | B10: 07:57:00 | C10: 鲁JA5339 | D10: 朱汪平 | E10: 朱汪平 | F10: 17705485906 | G10: 山东永信 | H10: 014150 | I10: 线材 | J10: &6.5 | K10: 48.4 | L10: 14.89 | M10: 33.51 | T10: 33.51 | U10: 4002 | V10: 134107.02 | W10: 冯海英 | X10: 聂恒光
A11: 7 | B11: 08:05:00 | C11: 鲁HW0617 | D11: 张兆群 | E11: 张兆群 | F11: 15153785444 | G11: 李广坤 | H11: 014151 | I11: 石子 | J11: 1--2 | K11: 29.03 | L11: 8.44 | M11: 20.59 | S11: 0.19T | T11: 20.4 | U11: 97 | V11: 1978.8 | W11: 冯海英 | X11: 聂恒光
A12: 8 | B12: 08:08:00 | C12: 鲁JB2331 | D12: 王磊 | E12: 王恩平 | F12: 18653677018 | G12: 郑言克 | H12: 014152 | I12: 石子 | J12: 1--2 | K12: 48.88 | L12: 14.73 | M12: 34.15 | S12: 0.15T | T12: 34 | U12: 97 | V12: 3298 | W12: 冯海英 | X12: 聂恒光
A13: 9 | B13: 08:12:00 | C13: 鲁JA4773 | D13: 王双喜 | E13: 王双喜 | F13: 15588714111 | G13: 郑言克 | H13: 014153 | I13: 石子 | J13: 1--2 | K13: 48.48 | L13: 14.39 | M13: 34.09 | S13: 0.19T | T13: 33.9 | U13: 97 | V13: 3288.3 | W13: 冯海英 | X13: 聂恒光
A14: 10 | B14: 08:20:00 | C14: 鲁RJ5036 | D14: 李翔 | E14: 郭胜全 | F14: 13395406029 | G14: 李翔 | H14: 014154 | I14: 钢棒 | J14: &9.0 | K14: 31.79 | L14: 14.28 | M14: 17.51 | T14: 17.51 | U14: 4850 | V14: 84923.5 | W14: 冯海英 | X14: 聂恒光
A15: 11 | B15: 08:28:00 | C15: 鲁H22H87 | D15: 魏保强 | E15: 魏保强 | F15: 13385379688 | G15: 李广坤 | H15: 014155 | I15: 石子 | J15: 1--2 | K15: 49.66 | L15: 15.39 | M15: 34.27 | S15: 0.17T | T15: 34.1 | U15: 97 | V15: 3307.7 | W15: 冯海英 | X15: 聂恒光
A16: 12 | B16: 09:38:00 | C16: 鲁RL7377 | D16: 李斌 | E16: 常云龙 | F16: 18264007774 | G16: 李广坤 | H16: 014156 | I16: 石子 | J16: 1--2 | K16: 26.88 | L16: 8.51 | M16: 18.37 | S16: 0.37T | T16: 18 | U16: 97 | V16: 1746 | W16: 冯海英 | X16: 聂恒光
A17: 13 | B17: 09:49:00 | C17: 鲁RN5188 | D17: 李斌 | E17: 安孔青 | F17: 15163023899 | G17: 李广坤 | H17: 014157 | I17: 石子 | J17: 1--2 | K17: 30.96 | L17: 8.55 | M17: 22.41 | S17: 0.11T | T17: 22.3 | U17: 97 | V17: 2163.1 | W17: 冯海英 | X17: 聂恒光
A18: 14 | B18: 10:58:00 | C18: 鲁RN7809 | D18: 张福兵 | E18: 张福兵 | F18: 15106407336 | G18: 英良运输 | H18: 014158 | I18: 机制沙 | J18: 中粗 | K18: 49.31 | L18: 16.18 | M18: 33.13 | S18: 0.13T | T18: 33 | U18: 139 | V18: 4587 | W18: 冯海英 | X18: 聂恒光
A19: 15 | B19: 11:03:00 | C19: 鲁RM6981 | D19: 黄国栋 | E19: 黄国栋 | F19: 13583034566 | G19: 英良运输 | H19: 014159 | I19: 机制沙 | J19: 中粗 | K19: 49.29 | L19: 16.51 | M19: 32.78 | S19: 0.18T | T19: 32.6 | U19: 139 | V19: 4531.4 | W19: 冯海英 | X19: 聂恒光
A20: 16 | B20: 11:07:00 | C20: 鲁RM7658 | D20: 谢红伟 | E20: 谢红伟 | F20: 15106407336 | G20: 英良运输 | H20: 014160 | I20: 机制沙 | J20: 中粗 | K20: 49.68 | L20: 16.68 | M20: 33 | S20: 0.1T | T20: 32.9 | U20: 139 | V20: 4573.1 | W20: 冯海英 | X20: 聂恒光
A21: 17 | B21: 13:07:00 | C21: 鲁JA4773 | D21: 王双喜 | E21: 王双喜 | F21: 15588714111 | G21: 郑言克 | H21: 014161 | I21: 石子 | J21: 1--2 | K21: 50.03 | L21: 14.4 | M21: 35.63 | S21: 0.13T | T21: 35.5 | U21: 97 | V21: 3443.5 | W21: 冯海英 | X21: 聂恒光
A22: 18 | B22: 13:11:00 | C22: 鲁JB2331 | D22: 王磊 | E22: 王恩军 | F22: 18653677018 | G22: 郑言克 | H22: 014162 | I22: 石子 | J22: 1--2 | K22: 49.56 | L22: 14.73 | M22: 34.83 | S22: 0.13T | T22: 34.7 | U22: 97 | V22: 3365.9 | W22: 冯海英 | X22: 聂恒光
A23: 19 | B23: 13:21:00 | C23: 鲁RM2498 | D23: 魏庆如 | E23: 崔伟标 | F23: 13061551313 | G23: 英良运输 | H23: 014163 | I23: 机制沙 | J23: 中粗 | K23: 49.49 | L23: 16.15 | M23: 33.34 | Q23: . | S23: 0.14T | T23: 33.2 | U23: 139 | V23: 4614.8 | W23: 冯海英 | X23: 聂恒光
A24: 20 | B24: 13:25:00 | C24: 鲁RN9829 | D24: 魏翔远 | E24: 魏翔远 | F24: 15854038599 | G24: 英良运输 | H24: 014164 | I24: 机制沙 | J24: 中粗 | K24: 50.59 | L24: 16.28 | M24: 34.31 | S24: 0.11T | T24: 34.2 | U24: 139 | V24: 4753.8 | W24: 冯海英 | X24: 聂恒光
A25: 21 | B25: 14:12:00 | C25: 鲁RLA9469 | D25: 付宁 | E25: 付宁 | F25: 15666910999 | G25: 英良运输 | H25: 014165 | I25: 机制沙 | J25: 中粗 | K25: 49.32 | L25: 15.64 | M25: 33.68 | S25: 0.18T | T25: 33.5 | U25: 139 | V25: 4656.5 | W25: 冯海英 | X25: 聂恒光
A26: 22 | B26: 14:17:00 | C26: 鲁RM9829 | D26: 付兴顺 | E26: 付兴顺 | F26: 13285401222 | G26: 英良运输 | H26: 014166 | I26: 机制沙 | J26: 中粗 | K26: 50.44 | L26: 15.69 | M26: 34.75 | S26: 0.15T | T26: 34.6 | U26: 139 | V26: 4809.4 | W26: 冯海英 | X26: 聂恒光
A27: 23 | B27: 14:39:00 | C27: 鲁RL7377 | D27: 李斌 | E27: 常云龙 | F27: 18264007774 | G27: 李广坤 | H27: 014167 | I27: 石子 | J27: 1--2 | K27: 25.77 | L27: 8.49 | M27: 17.28 | S27: 0.58T | T27: 16.7 | U27: 97 | V27: 1619.9 | W27: 冯海英 | X27: 聂恒光
A28: 24 | B28: 14:45:00 | C28: 鲁RN5188 | D28: 李斌 | E28: 安孔青 | F28: 15163023899 | G28: 李广坤 | H28: 014168 | I28: 石子 | J28: 1--2 | K28: 28.38 | L28: 8.53 | M28: 19.85 | S28: 0.55T | T28: 19.3 | U28: 97 | V28: 1872.1 | W28: 冯海英 | X28: 聂恒光
A29: 25 | B29: 14:49:00 | C29: 鲁HW0617 | D29: 张兆群 | E29: 张兆群 | F29: 15153785444 | G29: 李广坤 | H29: 014169 | I29: 石子 | J29: 1--2 | K29: 28.57 | L29: 8.43 | M29: 20.14 | S29: 0.14T | T29: 20 | U29: 97 | V29: 1940 | W29: 冯海英 | X29: 聂恒光
A30: 26 | B30: 14:58:00 | C30: 鲁UC1188 | D30: 高雨 | E30: 高雨 | F30: 18754032666 | G30: 英良运输 | H30: 014170 | I30: 机制沙 | J30: 中粗 | K30: 49.99 | L30: 15.19 | M30: 34.8 | S30: 0.1T | T30: 34.7 | U30: 139 | V30: 4823.3 | W30: 冯海英 | X30: 聂恒光
A31: 27 | B31: 15:03:00 | C31: 鲁RN3418 | D31: 付长友 | E31: 付长友 | F31: 13954023888 | G31: 英良运输 | H31: 014171 | I31: 机制沙 | J31: 中粗 | K31: 49.65 | L31: 15.73 | M31: 33.92 | S31: 0.12T | T31: 33.8 | U31: 139 | V31: 4698.2 | W31: 冯海英 | X31: 聂恒光
A32: 28 | B32: 15:14:00 | C32: 鲁RN3418 | D32: 张庆友 | E32: 张庆友 | F32: 17660309111 | G32: 英良运输 | H32: 014172 | I32: 机制沙 | J32: 中粗 | K32: 50.52 | L32: 15.98 | M32: 34.54 | S32: 0.14T | T32: 34.4 | U32: 139 | V32: 4781.6 | W32: 冯海英 | X32: 聂恒光
A33: 29 | B33: 17:04:00 | C33: 鲁JA4773 | D33: 王双喜 | E33: 王双喜 | F33: 15588714111 | G33: 郑言克 | H33: 014173 | I33: 石子 | J33: 1--2 | K33: 49.62 | L33: 14.39 | M33: 35.23 | S33: 0.13T | T33: 35.1 | U33: 97 | V33: 3404.7 | W33: 冯海英 | X33: 聂恒光
A34: 30 | B34: 17:11:00 | C34: 鲁JB2331 | D34: 王磊 | E34: 王恩军 | F34: 18653677018 | G34: 郑言克 | H34: 014174 | I34: 石子 | J34: 1--2 | K34: 49.52 | L34: 14.64 | M34: 34.88 | S34: 0.18T | T34: 34.7 | U34: 97 | V34: 3365.9 | W34: 冯海英 | X34: 聂恒光
A35: 31 | B35: 17:23:00 | C35: 鲁RM6981 | D35: 黄国栋 | E35: 黄国栋 | F35: 13583034566 | G35: 英良运输 | H35: 014175 | I35: 机制沙 | J35: 中粗 | K35: 50.25 | L35: 16.41 | M35: 33.84 | S35: 0.14T | T35: 33.7 | U35: 139 | V35: 4684.3 | W35: 冯海英 | X35: 聂恒光
A36: 32 | B36: 17:27:00 | C36: 鲁RN7809 | D36: 张福兵 | E36: 张福兵 | F36: 15106407336 | G36: 英良运输 | H36: 014176 | I36: 机制沙 | J36: 中粗 | K36: 50.23 | L36: 16.02 | M36: 34.21 | S36: 0.11T | T36: 34.1 | U36: 139 | V36: 4739.9 | W36: 冯海英 | X36: 聂恒光
A37: 33 | B37: 17:30:00 | C37: 鲁RM7658 | D37: 谢红伟 | E37: 谢红伟 | F37: 15106407336 | G37: 英良运输 | H37: 014177 | I37: 机制沙 | J37: 中粗 | K37: 49.7 | L37: 16.53 | M37: 33.17 | S37: 0.17T | T37: 33 | U37: 139 | V37: 4587 | W37: 冯海英 | X37: 聂恒光
A38: 34 | B38: 18:54:00 | C38: 鲁RN9429 | D38: 魏翔远 | E38: 米庆栋 | F38: 18953005713 | G38: 英良运输 | H38: 014178 | I38: 机制沙 | J38: 中粗 | K38: 49.55 | L38: 16.19 | M38: 33.36 | S38: 0.16T | T38: 33.2 | U38: 139 | V38: 4614.8 | W38: 冯海英 | X38: 聂恒光
A39: 35 | B39: 19:00:00 | C39: 鲁RM2498 | D39: 魏庆如 | E39: 崔伟标 | F39: 13061551313 | G39: 英良运输 | H39: 014179 | I39: 机制沙 | J39: 中粗 | K39: 50.13 | L39: 16.04 | M39: 34.09 | S39: 0.19T | T39: 33.9 | U39: 139 | V39: 4712.1 | W39: 冯海英 | X39: 聂恒光
A40: 36 | M40: 0 | V40: 0
A41: 37 | M41: 0 | V41: 0
A42: 38 | M42: 0 | V42: 0
A43: 39 | M43: 0 | V43: 0
A44: 40 | M44: 0 | V44: 0
A45: 41 | M45: 0 | V45: 0
A46: 42 | M46: 0 | V46: =T46*U46 -> 0
A47: 43 | M47: 0 | V47: 0
A48: 44 | M48: 0 | V48: 0
A49: 45 | M49: 0 | V49: 0
A50: 46 | M50: 0 | V50: 0
A51: 47 | M51: 0 | V51: 0
A52: 48 | M52: 0 | V52: 0
A53: 49 | M53: 0 | V53: 0
A54: 50 | M54: 0 | V54: 0
A55: 51 | M55: 0 | V55: 0
A56: 52 | M56: 0 | V56: 0
A57: 53 | M57: 0 | V57: 0
A58: 54 | M58: 0 | V58: 0
A59: 55 | M59: 0 | V59: 0
A60: 56 | M60: 0 | V60: 0
A61: 57 | M61: 0 | V61: 0
A62: 58 | M62: 0 | V62: 0
A63: 59 | M63: 0 | V63: 0
A64: 60 | M64: 0 | V64: 0
A65: 61 | M65: 0 | V65: 0
A66: 62 | M66: 0 | V66: 0
A67: 63 | M67: 0 | V67: 0
A68: 64 | M68: 0 | V68: 0
A69: 65 | M69: =K69-L69 -> 0 | V69: 0
A70: 66 | M70: 0 | V70: 0
A71: 67 | M71: 0 | V71: 0
A72: 68 | M72: 0 | V72: 0
A73: 合计： | T73: 0 | V73: =SUM(V5:V72) -> 488827.12
